fUST/lending_fUST_20240212
["ID","MTS","AMOUNT","RATE_DAILY","PERIOD"]
[313764767,1707690645215,-155.7794227,0.00020822,2]
[313764768,1707690645224,-151.0,0.00020822,2]
[313764769,1707690645233,-151.0,0.00020822,2]
[313764770,1707690645243,-153.0,0.00020893,2]
[313764771,1707690645252,-374.8691778,0.00020893,2]
[313764772,1707690645261,-295.3034159,0.00020893,2]
[313764773,1707690645270,-205.4925975,0.00020893,2]
[313764774,1707690645279,-1249.07043289,0.00020927,2]
[313764775,1707690645288,-569.51350981,0.00020998,3]
[313764776,1707690645296,-46013.01789712,0.00020999,2]
[313764777,1707690645305,-151.0,0.00020999,2]
[313764778,1707690645314,-151.0,0.00020999,2]
[313764779,1707690645324,-385.303238,0.00020999,2]
[313764780,1707690645333,-385.303238,0.00020999,2]
[313764781,1707690645342,-151.0,0.00020999,2]
[313764782,1707690645351,-151.0,0.00020999,2]
[313764783,1707690645360,-469.479903,0.00020999,2]
[313764784,1707690645370,-469.479903,0.00020999,2]
[313764785,1707690645379,-500.0,0.00021027,2]
[313764786,1707690645387,-153.0,0.00021041,2]
[313764787,1707690645396,-153.0,0.00021041,2]
[313764788,1707690645406,-308.0355918,0.00021041,2]
[313764789,1707690645415,-153.0,0.00021041,2]
[313764790,1707690645423,-153.0,0.00021041,2]
[313764791,1707690645432,-153.0,0.00021041,2]
[313764792,1707690645441,-200.079134,0.00021041,2]
[313764793,1707690645450,-320.2118612,0.00021041,2]
[313764794,1707690645461,-200.079134,0.00021041,2]
[313764795,1707690645471,-200.079134,0.00021041,2]
[313764796,1707690645480,-821.15351128,0.00021074,2]
[313764797,1707690645489,-11990.53251479,0.00021074,2]
[313764808,1707690646273,-1826.10197646,0.00019999,2]
[313764809,1707690646286,-2405.80573807,0.00019999,2]
[313764951,1707691834024,-317.8659598,0.00018374,2]
[313764952,1707691834033,-217.57245818,0.00018546,2]
[313764953,1707691834045,-50.84949122,0.00018546,2]
[313764954,1707691834054,-215.60591,0.00018757,2]
[313764955,1707691834063,-438.68046578,0.000189,2]
[313764956,1707691834072,-523.48932811,0.00018914,2]
[313764957,1707691834082,-297.08067189,0.00018915,2]
[313764958,1707691834091,-500.0,0.00019178,2]
[313764959,1707691834100,-500.0,0.00019178,2]
[313764960,1707691834109,-500.0,0.00019178,2]
[313764961,1707691834118,-500.0,0.00019178,2]
[313764962,1707691834127,-428.12545008,0.00019452,2]
[313764963,1707691834136,-500.0,0.00019452,2]
[313764964,1707691834145,-500.0,0.00019452,2]
[313764965,1707691834154,-500.0,0.00019452,2]
[313764966,1707691834163,-602.89,0.00019724,2]
[313764967,1707691834172,-927.73,0.00019724,2]
[313764968,1707691834181,-500.0,0.00019724,2]
[313764969,1707691834190,-500.0,0.00019725,2]
[313764970,1707691834199,-1250.81,0.00019725,2]
[313764971,1707691834210,-1167.43,0.00019725,2]
[313764972,1707691834218,-2468.65,0.00019725,2]
[313764973,1707691834228,-999.17,0.00019725,2]
[313764974,1707691834236,-1035.11,0.00019725,2]
[313764975,1707691834246,-500.0,0.00019725,2]
[313764976,1707691834255,-500.0,0.00019725,2]
[313764977,1707691834264,-500.0,0.00019725,2]
[313764978,1707691834273,-500.0,0.00019726,2]
[313764979,1707691834283,-179.12410853,0.00019726,2]
[313764980,1707691834294,-320.87589147,0.00019726,2]
[313764981,1707691834304,-500.0,0.00019726,2]
[313764982,1707691834313,-195.53848412,0.000199,2]
[313764983,1707691834322,-2790.22,0.00019989,3]
[313764984,1707691834331,-4777.86,0.00019989,3]
[313764985,1707691834341,-1025.12700965,0.00019989,3]
[313765063,1707691841559,-4817.9,0.00018361,2]
[313765064,1707691841615,-1926.40816408,0.00018361,2]
[313765140,1707691843424,-2685.86585161,0.00018361,2]
[313765144,1707691843435,-3095.35326581,0.00018361,2]
[313765263,1707691846378,-3762.603669,0.00018361,2]
[313765264,1707691846387,-228.75493078,0.00019996,2]
[313765265,1707691846399,-410.6390523,0.00019996,2]
[313765266,1707691846409,-1035.39103416,0.00019996,3]
[313765267,1707691846418,-2607.2690256,0.00019996,2]
[313765269,1707691846427,-13491.30016708,0.00019996,2]
[313765270,1707691846437,-351.10475835,0.00019996,2]
[313765271,1707691846448,-628.869997,0.00019996,2]
[313765272,1707691846459,-435.34359155,0.00019996,2]
[313765313,1707693034252,-590.45600238,0.00018844,2]
[313765314,1707693034262,-3758.37645262,0.00018844,2]
[313765315,1707693034272,-1766.36391451,0.00018845,2]
[313765368,1707693039003,-512.74356397,0.00018844,2]
[313765370,1707693039015,-529.4657,0.00018844,2]
[313765372,1707693039026,-2704.23604034,0.00018844,2]
[313765374,1707693039035,-19204.08348697,0.00018845,2]
[313765375,1707693039044,-293.67497372,0.00018866,2]
[313765376,1707693039054,-358.17031704,0.00018879,2]
[313765377,1707693039063,-3614.98058656,0.00018894,2]
[313765378,1707693039072,-5428.4885027,0.00018895,2]
[313765379,1707693039082,-1947.38333434,0.00018899,2]
[313765380,1707693039090,-974.66344205,0.000189,2]
[313765381,1707693039100,-175.02358018,0.00019078,2]
[313765382,1707693039109,-500.0,0.00019178,2]
[313765383,1707693039119,-500.0,0.00019178,2]
[313765384,1707693039127,-500.0,0.00019178,2]
[313765385,1707693039136,-500.0,0.00019178,2]
[313765386,1707693039145,-889.07,0.00019178,2]
[313765387,1707693039155,-503.76,0.00019178,2]
[313765388,1707693039164,-500.0,0.00019178,2]
[313765389,1707693039175,-500.0,0.00019178,2]
[313765390,1707693039184,-500.0,0.00019178,2]
[313765391,1707693039193,-500.0,0.00019178,2]
[313765392,1707693039202,-500.0,0.00019178,2]
[313765393,1707693039210,-500.0,0.00019178,2]
[313765394,1707693039219,-500.0,0.00019178,2]
[313765395,1707693039229,-1198.7,0.00019178,2]
[313765396,1707693039239,-1118.79,0.00019178,2]
[313765397,1707693039252,-2674.24,0.00019178,2]
[313765398,1707693039263,-500.0,0.00019178,2]
[313765399,1707693039272,-2365.79,0.00019178,2]
[313765400,1707693039281,-150.0,0.00019178,2]
[313765401,1707693039290,-507.14192203,0.00019178,2]
[313765402,1707693039299,-500.0,0.00019178,2]
[313765403,1707693039308,-439.76123941,0.00019178,2]
[313765406,1707693041801,-517.77876059,0.00019178,2]
[313765407,1707693041810,-627.91,0.00019178,2]
[313765408,1707693041819,-500.0,0.00019178,2]
[313765409,1707693041828,-991.98,0.00019178,2]
[313765410,1707693041837,-500.0,0.00019178,2]
[313765411,1707693041846,-199.313053,0.00019178,2]
[313765412,1707693041855,-500.0,0.00019178,2]
[313765413,1707693041866,-577.77,0.00019178,2]
[313765414,1707693041876,-591.87733819,0.00019178,2]
[313765415,1707693041886,-168.638215,0.00019178,2]
[313765416,1707693041895,-4277.12,0.00019432,3]
[313765417,1707693041904,-116.30438603,0.00019452,2]
[313765418,1707693041917,-772.76561397,0.00019452,2]
[313765419,1707693041926,-127.05634269,0.00019452,2]
[313765420,1707693041938,-372.94365731,0.00019452,2]
[313765421,1707693041947,-500.0,0.00019452,2]
[313765422,1707693041957,-64.90796769,0.00019452,2]
[313765423,1707693041974,-435.09203231,0.00019452,2]
[313765424,1707693041983,-1198.7,0.00019452,2]
[313765425,1707693041992,-860.359324,0.00019452,2]
[313765426,1707693042023,-258.430676,0.00019452,2]
[313765427,1707693042032,-2674.24,0.00019452,2]
[313765428,1707693042041,-262.3589305,0.00019452,2]
[313765429,1707693042056,-2103.4310695,0.00019452,2]
[313765430,1707693042065,-353.96,0.00019452,2]
[313765431,1707693042074,-957.54,0.00019452,2]
[313765432,1707693042083,-991.98,0.00019452,2]
[313765433,1707693042092,-500.0,0.00019452,2]
[313765434,1707693042101,-500.0,0.00019452,2]
[313765435,1707693042110,-577.77,0.00019452,2]
[313765436,1707693042120,-175.02358017,0.00019466,2]
[313765437,1707693042129,-1114.80462034,0.000195,2]
[313765438,1707693042139,-500.0,0.00019725,2]
[313765439,1707693042148,-500.0,0.00019725,2]
[313765440,1707693042157,-500.0,0.00019725,2]
[313765441,1707693042167,-500.0,0.00019725,2]
[313765442,1707693042178,-500.0,0.00019725,2]
[313765443,1707693042188,-500.0,0.00019725,2]
[313765444,1707693042197,-500.0,0.00019725,2]
[313765445,1707693042206,-500.0,0.00019725,2]
[313765446,1707693042216,-500.0,0.00019725,2]
[313765447,1707693042225,-500.0,0.00019725,2]
[313765448,1707693042233,-500.0,0.00019725,2]
[313765449,1707693042243,-500.0,0.00019725,2]
[313765450,1707693042252,-550.0,0.00019725,2]
[313765451,1707693042261,-500.0,0.00019725,2]
[313765452,1707693042270,-500.0,0.00019725,2]
[313765453,1707693042279,-500.0,0.00019725,2]
[313765454,1707693042288,-393.63927075,0.00019725,2]
[313765455,1707693042298,-500.0,0.00019725,2]
[313765456,1707693042307,-500.0,0.00019725,2]
[313765457,1707693042315,-500.0,0.00019725,2]
[313765458,1707693042324,-500.0,0.00019725,2]
[313765459,1707693042333,-500.0,0.00019725,2]
[313765460,1707693042342,-500.0,0.00019725,2]
[313765461,1707693042352,-500.0,0.00019725,2]
[313765462,1707693042360,-500.0,0.00019725,2]
[313765463,1707693042369,-500.0,0.00019725,2]
[313765464,1707693042378,-183.95635184,0.00019725,2]
[313765465,1707693042387,-502.71168863,0.00019725,2]
[313765466,1707693042396,-540.54509523,0.00019725,2]
[313765467,1707693042405,-500.0,0.00019725,2]
[313765468,1707693042415,-630.97,0.00019725,2]
[313765469,1707693042424,-500.0,0.00019725,2]
[313765470,1707693042433,-500.0,0.00019725,2]
[313765471,1707693042442,-500.0,0.00019725,2]
[313765472,1707693042451,-500.0,0.00019725,2]
[313765473,1707693042459,-500.0,0.00019725,2]
[313765474,1707693042468,-500.0,0.00019725,2]
[313765475,1707693042477,-889.07,0.00019726,2]
[313765476,1707693042486,-613.8658541,0.00019726,2]
[313765477,1707693042495,-500.0,0.00019726,2]
[313765478,1707693042504,-500.0,0.00019726,2]
[313765479,1707693042513,-1198.7,0.00019726,2]
[313765480,1707693042522,-1118.79,0.00019726,2]
[313765481,1707693042530,-2674.24,0.00019726,2]
[313765482,1707693042539,-2365.79,0.00019726,2]
[313765483,1707693042548,-957.54,0.00019726,2]
[313765484,1707693042557,-991.98,0.00019726,2]
[313765485,1707693042566,-500.0,0.00019726,2]
[313765486,1707693042575,-386.4,0.00019726,2]
[313765487,1707693042584,-577.77,0.00019726,2]
[313765488,1707693042593,-200.0,0.00019788,2]
[313765489,1707693042604,-175.02358017,0.00019853,2]
[313765490,1707693042614,-261.94560961,0.00019987,2]
[313765491,1707693042623,-155.0697814,0.00019987,2]
[313765492,1707693042632,-295.73444606,0.00019987,2]
[313765493,1707693042641,-1859.71951506,0.00019987,2]
[313765494,1707693042650,-154.90705577,0.00019988,2]
[313765495,1707693042658,-500.0,0.00019988,2]
[313765496,1707693042667,-500.0,0.00019988,2]
[313765497,1707693042676,-500.0,0.00019988,2]
[313765498,1707693042686,-500.0,0.00019988,2]
[313765499,1707693042695,-602.26864517,0.00019988,2]
[313765500,1707693042704,-1960.72952473,0.00019996,2]
[313765501,1707693042714,-1033.53504602,0.00019996,2]
[313765502,1707693042722,-500.0,0.00019996,2]
[313765503,1707693042731,-763.14708037,0.00019996,2]
[313765504,1707693042740,-1297.69513983,0.00019996,2]
[313765505,1707693042749,-154.90705577,0.00019996,2]
[313765506,1707693042758,-14868.70142849,0.00019996,2]
[313765507,1707693042772,-3949.86857151,0.00019996,2]
[313765508,1707693042781,-256.02142849,0.00019997,2]
[313765509,1707693042793,-1088.15306263,0.00019997,2]
[313765510,1707693042802,-500.0,0.00019997,2]
[313765511,1707693042811,-500.0,0.00019997,2]
[313765512,1707693042821,-500.0,0.00019997,2]
[313765513,1707693042831,-500.0,0.00019997,2]
[313765514,1707693042841,-606.66,0.00019997,2]
[313765515,1707693042852,-500.0,0.00019997,2]
[313765516,1707693042862,-500.0,0.00019997,2]
[313765517,1707693042871,-305.18693737,0.00019997,2]
[313765527,1707693043623,-155.49505855,0.00019177,2]
[313765528,1707693043633,-194.81306263,0.00019997,2]
[313765529,1707693043642,-500.0,0.00019997,2]
[313765530,1707693043650,-265.1131823,0.00019998,2]
[313765531,1707693043679,-269.96957208,0.00019998,2]
[313765532,1707693043688,-12517.90072809,0.00019998,2]
[313765533,1707693045215,981.34824706,0.00017505,2]
[313765548,1707693049822,-851.49034209,0.00019177,2]
[313765554,1707693149372,627.0731662,0.00017899,2]
[313765555,1707693150204,24900.0,0.00017899,2]
[313765557,1707693602472,3115.8101484,0.00017755,2]
[313765626,1707694237810,-906.8614183,0.0001858,2]
[313765628,1707694237819,-20944.3104518,0.0001858,2]
[313765630,1707694237828,-330.75753837,0.0001858,2]
[313765632,1707694237837,-19932.70348687,0.0001858,2]
[313765634,1707694237845,-154.87609912,0.00018581,2]
[313765635,1707694237854,-199.87854564,0.00018581,2]
[313765636,1707694237864,-4468.13995158,0.00018581,2]
[313765638,1707694237873,-19148.7409661,0.00018581,2]
[313765639,1707694237881,-37088.22769886,0.00018581,2]
[313765640,1707694237890,-181.64923737,0.00018582,2]
[313765641,1707694237899,-535.79408158,0.00018582,2]
[313765642,1707694237908,-1587.73592966,0.00018582,2]
[313765643,1707694237916,-20970.44740148,0.00018582,2]
[313765644,1707694237926,-1434.86449475,0.00018583,2]
[313765647,1707694237934,-18968.39606022,0.00018583,2]
[313765650,1707694237943,-500.0,0.00018583,2]
[313765652,1707694237952,-161.61744964,0.00018584,2]
[313765653,1707694237963,-563.52557582,0.00018584,2]
[313765654,1707694237973,-3758.37645262,0.00018584,2]
[313765655,1707694237982,-2102.21255648,0.00018585,2]
[313765656,1707694237991,-247.40081509,0.00018585,2]
[313765657,1707694238001,-294.73471076,0.00018585,2]
[313765658,1707694238011,-83980.96678197,0.00018585,2]
[313765659,1707694238021,-250.0,0.00018601,2]
[313765660,1707694238030,-281.687941,0.00018605,2]
[313765661,1707694238039,-281.687941,0.00018605,2]
[313765662,1707694238049,-733.32499437,0.00018609,2]
[313765663,1707694238059,-151.25316847,0.00018615,2]
[313765664,1707694238069,-151.25316844,0.00018769,2]
[313765665,1707694238078,-151.0,0.00018853,2]
[313765666,1707694238087,-60.42986945,0.00018869,2]
[313765667,1707694238100,-152.29432953,0.00018869,2]
[313765668,1707694238109,-747.43867918,0.000189,2]
[313765669,1707694238120,-151.25316844,0.00018924,2]
[313765670,1707694238130,-151.25316844,0.00019078,2]
[313765671,1707694238141,-1276.4919767,0.00019176,2]
[313765674,1707694240917,-3746.44530431,0.00018579,2]
[313765676,1707694240927,-154.87609912,0.00018579,2]
[313765678,1707694240937,-467.68743259,0.00019176,2]
[313765680,1707694240946,-584.4797816,0.00019177,2]
[313765681,1707694240955,-156.43029123,0.00019177,2]
[313765682,1707694240964,-500.0,0.00019178,2]
[313765683,1707694240972,-369.15726056,0.00019178,2]
[313765685,1707694240981,-316.97383059,0.00019178,2]
[313765702,1707694245736,-183.02616941,0.00019178,2]
[313765703,1707694245747,-500.0,0.00019178,2]
[313765704,1707694245757,-500.0,0.00019178,2]
[313765705,1707694245765,-500.0,0.00019178,2]
[313765706,1707694245774,-151.0,0.00019178,2]
[313765707,1707694245784,-281.07300092,0.00019178,2]
[313765708,1707694245793,-500.0,0.00019178,2]
[313765709,1707694245803,-610.18704741,0.00019178,2]
[313765710,1707694245813,-500.0,0.00019178,2]
[313765711,1707694245823,-597.8,0.00019178,2]
[313765712,1707694245832,-500.0,0.00019178,2]
[313765713,1707694245843,-500.0,0.00019178,2]
[313765714,1707694245852,-500.0,0.00019178,2]
[313765715,1707694245862,-500.0,0.00019178,2]
[313765716,1707694245871,-500.0,0.00019178,2]
[313765717,1707694245880,-500.0,0.00019178,2]
[313765718,1707694245889,-500.0,0.00019178,2]
[313765719,1707694245898,-500.0,0.00019178,2]
[313765720,1707694245908,-627.50932026,0.00019178,2]
[313765721,1707694245917,-500.0,0.00019178,2]
[313765722,1707694245927,-500.0,0.00019178,2]
[313765723,1707694245937,-500.0,0.00019178,2]
[313765724,1707694245946,-300.0,0.00019178,2]
[313765725,1707694245954,-500.0,0.00019178,2]
[313765726,1707694245963,-500.0,0.00019178,2]
[313765727,1707694245972,-500.0,0.00019178,2]
[313765728,1707694245981,-500.0,0.00019178,2]
[313765729,1707694245990,-500.0,0.00019178,2]
[313765730,1707694245999,-500.0,0.00019178,2]
[313765731,1707694246009,-500.0,0.00019178,2]
[313765732,1707694246018,-500.0,0.00019178,2]
[313765733,1707694246027,-595.34,0.00019178,2]
[313765734,1707694246037,-500.0,0.00019178,2]
[313765735,1707694246047,-151.0,0.00019178,2]
[313765736,1707694246056,-500.0,0.00019178,2]
[313765737,1707694246066,-403.08977589,0.00019178,2]
[313765738,1707694246075,-500.0,0.00019178,2]
[313765739,1707694246084,-500.0,0.00019178,2]
[313765740,1707694246095,-533.72614104,0.00019178,2]
[313765741,1707694246104,-500.0,0.00019178,2]
[313765742,1707694246114,-540.83362798,0.00019178,2]
[313765743,1707694246125,-500.0,0.00019178,2]
[313765744,1707694246134,-500.0,0.00019178,2]
[313765745,1707694246144,-500.0,0.00019178,2]
[313765746,1707694246153,-500.0,0.00019178,2]
[313765747,1707694246164,-625.51,0.00019178,2]
[313765748,1707694246173,-500.0,0.00019178,2]
[313765749,1707694246182,-500.0,0.00019178,2]
[313765750,1707694246191,-500.0,0.00019178,2]
[313765751,1707694246200,-372.88984414,0.00019178,2]
[313765752,1707694246209,-500.0,0.00019178,2]
[313765753,1707694246218,-500.0,0.00019178,2]
[313765754,1707694246228,-500.0,0.00019178,2]
[313765755,1707694246237,-500.0,0.00019178,2]
[313765756,1707694246246,-500.0,0.00019178,2]
[313765757,1707694246255,-500.0,0.00019178,2]
[313765758,1707694246264,-500.0,0.00019178,2]
[313765759,1707694246274,-500.0,0.00019178,2]
[313765760,1707694246283,-500.0,0.00019178,2]
[313765761,1707694246292,-500.0,0.00019178,2]
[313765762,1707694246300,-500.0,0.00019178,2]
[313765763,1707694246310,-581.1684637,0.00019178,2]
[313765764,1707694246320,-581.38,0.00019178,2]
[313765765,1707694246330,-150.0,0.00019178,2]
[313765766,1707694246339,-269.712266,0.00019178,2]
[313765767,1707694246348,-269.712266,0.00019178,2]
[313765768,1707694246357,-269.712266,0.00019178,2]
[313765769,1707694246366,-269.712266,0.00019178,2]
[313765770,1707694246375,-500.0,0.00019178,2]
[313765771,1707694246384,-622.58,0.00019178,2]
[313765772,1707694246394,-500.0,0.00019178,2]
[313765773,1707694246402,-500.0,0.00019178,2]
[313765774,1707694246412,-500.0,0.00019178,2]
[313765775,1707694246421,-500.0,0.00019178,2]
[313765776,1707694246431,-500.0,0.00019178,2]
[313765777,1707694246440,-151.0,0.00019178,2]
[313765778,1707694246449,-151.0,0.00019178,2]
[313765779,1707694246458,-151.0,0.00019178,2]
[313765780,1707694246469,-151.0,0.00019178,2]
[313765781,1707694246478,-500.0,0.00019178,2]
[313765782,1707694246487,-500.0,0.00019178,2]
[313765783,1707694246496,-500.0,0.00019178,2]
[313765784,1707694246505,-500.0,0.00019178,2]
[313765785,1707694246515,-500.0,0.00019178,2]
[313765786,1707694246524,-1000.0,0.00019178,2]
[313765787,1707694246533,-500.0,0.00019178,2]
[313765788,1707694246542,-500.0,0.00019178,2]
[313765789,1707694246551,-536.80557285,0.00019178,2]
[313765790,1707694246561,-500.0,0.00019178,2]
[313765791,1707694246571,-500.0,0.00019178,2]
[313765792,1707694246583,-500.0,0.00019178,2]
[313765793,1707694246592,-500.0,0.00019178,2]
[313765794,1707694246601,-500.0,0.00019178,2]
[313765795,1707694246610,-500.0,0.00019178,2]
[313765796,1707694246619,-500.0,0.00019178,2]
[313765797,1707694246629,-500.0,0.00019178,2]
[313765798,1707694246638,-500.0,0.00019178,2]
[313765799,1707694246649,-500.0,0.00019178,2]
[313765800,1707694246659,-500.0,0.00019178,2]
[313765801,1707694246669,-548.81443925,0.00019178,2]
[313765802,1707694246678,-500.0,0.00019178,2]
[313765803,1707694246687,-500.0,0.00019178,2]
[313765804,1707694246696,-500.0,0.00019178,2]
[313765805,1707694246705,-500.0,0.00019178,2]
[313765806,1707694246715,-500.0,0.00019178,2]
[313765807,1707694246724,-500.0,0.00019178,2]
[313765808,1707694246734,-500.0,0.00019178,2]
[313765809,1707694246743,-500.01,0.00019178,2]
[313765810,1707694246753,-500.0,0.00019178,2]
[313765811,1707694246762,-500.0,0.00019178,2]
[313765812,1707694246773,-506.66249398,0.00019178,2]
[313765813,1707694246782,-500.0,0.00019178,2]
[313765814,1707694246791,-500.0,0.00019178,2]
[313765815,1707694246800,-1739.67,0.00019178,2]
[313765816,1707694246809,-500.0,0.00019178,2]
[313765817,1707694246818,-500.0,0.00019178,2]
[313765818,1707694246827,-500.0,0.00019178,2]
[313765819,1707694246836,-500.0,0.00019178,2]
[313765820,1707694246846,-500.0,0.00019178,2]
[313765821,1707694246855,-500.0,0.00019178,2]
[313765822,1707694246864,-500.0,0.00019178,2]
[313765823,1707694246875,-601.07,0.00019178,2]
[313765824,1707694246884,-526.68874328,0.00019178,2]
[313765825,1707694246893,-500.0,0.00019178,2]
[313765826,1707694246901,-500.0,0.00019178,2]
[313765827,1707694246911,-2070.06,0.00019178,2]
[313765828,1707694246921,-259.40666895,0.00019178,2]
[313765829,1707694246932,-500.0,0.00019178,2]
[313765830,1707694246941,-500.0,0.00019178,2]
[313765831,1707694246950,-641.02974925,0.00019178,2]
[313765832,1707694246959,-500.0,0.00019178,2]
[313765833,1707694246969,-500.0,0.00019178,2]
[313765834,1707694246979,-1283.91,0.00019178,2]
[313765835,1707694246988,-550.05,0.00019178,2]
[313765836,1707694246997,-500.0,0.00019178,2]
[313765837,1707694247007,-500.0,0.00019178,2]
[313765838,1707694247016,-500.0,0.00019178,2]
[313765839,1707694247025,-500.0,0.00019178,2]
[313765840,1707694247035,-500.0,0.00019178,2]
[313765841,1707694247044,-1284.95,0.00019178,2]
[313765842,1707694247053,-281.687941,0.00019178,2]
[313765843,1707694247062,-281.687941,0.00019178,2]
[313765844,1707694247071,-281.687941,0.00019178,2]
[313765845,1707694247080,-500.0,0.00019178,2]
[313765846,1707694247089,-281.687941,0.00019178,2]
[313765847,1707694247098,-281.687941,0.00019178,2]
[313765848,1707694247107,-281.687941,0.00019178,2]
[313765849,1707694247116,-500.0,0.00019178,2]
[313765850,1707694247125,-500.0,0.00019178,2]
[313765851,1707694247135,-500.0,0.00019178,2]
[313765852,1707694247143,-2953.08,0.00019178,2]
[313765853,1707694247153,-500.0,0.00019178,2]
[313765854,1707694247162,-500.0,0.00019178,2]
[313765855,1707694247171,-500.0,0.00019178,2]
[313765856,1707694247181,-500.0,0.00019178,2]
[313765857,1707694247190,-528.67858032,0.00019178,2]
[313765858,1707694247198,-2169.67,0.00019178,2]
[313765859,1707694247207,-500.0,0.00019178,2]
[313765860,1707694247217,-500.0,0.00019178,2]
[313765861,1707694247226,-500.0,0.00019178,2]
[313765862,1707694247235,-500.0,0.00019178,2]
[313765863,1707694247244,-423.28377858,0.00019178,2]
[313765864,1707694247254,-500.0,0.00019178,2]
[313765865,1707694247264,-500.0,0.00019178,2]
[313765866,1707694247273,-500.0,0.00019178,2]
[313765867,1707694247282,-500.0,0.00019178,2]
[313765868,1707694247291,-500.0,0.00019178,2]
[313765869,1707694247300,-500.0,0.00019178,2]
[313765870,1707694247310,-500.0,0.00019178,2]
[313765871,1707694247319,-500.0,0.00019178,2]
[313765872,1707694247328,-500.0,0.00019178,2]
[313765873,1707694247338,-617.34,0.00019178,2]
[313765874,1707694247347,-500.0,0.00019178,2]
[313765875,1707694247356,-809.33,0.00019178,2]
[313765876,1707694247366,-500.0,0.00019178,2]
[313765877,1707694247375,-500.0,0.00019178,2]
[313765878,1707694247384,-1270.89,0.00019178,2]
[313765879,1707694247393,-500.0,0.00019178,2]
[313765880,1707694247401,-500.0,0.00019178,2]
[313765881,1707694247410,-500.0,0.00019178,2]
[313765882,1707694247419,-500.0,0.00019178,2]
[313765883,1707694247428,-500.0,0.00019178,2]
[313765884,1707694247437,-500.0,0.00019178,2]
[313765885,1707694247446,-500.0,0.00019178,2]
[313765886,1707694247455,-500.0,0.00019178,2]
[313765887,1707694247464,-500.0,0.00019178,2]
[313765888,1707694247474,-500.0,0.00019178,2]
[313765889,1707694247483,-169.675526,0.00019178,2]
[313765890,1707694247492,-620.0673769,0.0001932,2]
[313765891,1707694247501,-497.95,0.00019452,2]
[313765892,1707694247512,-211.08,0.00019452,2]
[313765893,1707694247521,-500.0,0.00019452,2]
[313765894,1707694247531,-500.0,0.00019452,2]
[313765895,1707694247541,-339.21,0.00019452,2]
[313765896,1707694247550,-500.0,0.00019452,2]
[313765897,1707694247559,-281.737288,0.00019452,2]
[313765898,1707694247568,-151.0,0.00019452,2]
[313765899,1707694247579,-500.0,0.00019452,2]
[313765900,1707694247590,-556.49,0.00019452,2]
[313765901,1707694247599,-331.89,0.00019452,2]
[313765902,1707694247608,-437.57,0.00019452,2]
[313765903,1707694247617,-500.0,0.00019452,2]
[313765904,1707694247627,-500.0,0.00019452,2]
[313765905,1707694247636,-1739.67,0.00019452,2]
[313765906,1707694247646,-500.0,0.00019452,2]
[313765907,1707694247657,-607.41575666,0.00019452,2]
[313765908,1707694247666,-2070.06,0.00019452,2]
[313765909,1707694247675,-1283.91,0.00019452,2]
[313765910,1707694247684,-1284.95,0.00019452,2]
[313765911,1707694247693,-281.687941,0.00019452,2]
[313765912,1707694247702,-281.687941,0.00019452,2]
[313765913,1707694247711,-500.0,0.00019452,2]
[313765914,1707694247721,-500.0,0.00019452,2]
[313765915,1707694247730,-2953.08,0.00019452,2]
[313765916,1707694247739,-500.0,0.00019452,2]
[313765917,1707694247748,-500.0,0.00019452,2]